[Event "Titled Tuesday Blitz May 30 Late 2023"]
[White "Melikyan, Gnel"]
[Black "Seletsky, Grigory"]
[WhiteFideId "54109990"]
[BlackFideId "14112191"]
[WhiteElo "2138"]
[BlackElo "2491"]
[Result "1-0"]
[Round "09"]
[TimeControl "180+2"]
[Date "2023.05.31"]
[WhiteClock "0:01:25"]
[BlackClock "0:00:01"]

1. e4 {[%clk 0:03:00]}  c6 {[%clk 0:02:58]} 2. Nf3 {[%clk 0:03:01]}  d5 {[%clk 0:02:58]} 3. Nc3 {[%clk 0:03:02]}  Bg4 {[%clk 0:02:57]} 4. h3 {[%clk 0:02:57]}  Bxf3 {[%clk 0:02:57]} 5. Qxf3 {[%clk 0:02:58]}  e6 {[%clk 0:02:57]} 6. b3 {[%clk 0:02:57]}  Nf6 {[%clk 0:02:56]} 7. Bb2 {[%clk 0:02:56]}  Be7 {[%clk 0:02:55]} 8. O-O-O {[%clk 0:02:55]}  O-O {[%clk 0:02:53]} 9. g4 {[%clk 0:02:54]}  a5 {[%clk 0:02:48]} 10. g5 {[%clk 0:02:52]}  Nfd7 {[%clk 0:02:47]} 11. h4 {[%clk 0:02:49]}  Na6 {[%clk 0:02:29]} 12. Bh3 {[%clk 0:02:47]}  Nac5 {[%clk 0:02:23]} 13. Rdg1 {[%clk 0:02:42]}  a4 {[%clk 0:02:22]} 14. g6 {[%clk 0:02:39]}  hxg6 {[%clk 0:02:20]} 15. h5 {[%clk 0:02:39]}  g5 {[%clk 0:02:20]} 16. h6 {[%clk 0:02:38]}  d4 {[%clk 0:01:37]} 17. hxg7 {[%clk 0:02:36]}  Kxg7 {[%clk 0:01:35]} 18. Ne2 {[%clk 0:02:32]}  Ne5 {[%clk 0:01:34]} 19. Qg3 {[%clk 0:02:27]}  Ng6 {[%clk 0:01:30]} 20. Nxd4 {[%clk 0:02:11]}  Bf6 {[%clk 0:01:19]} 21. Qe3 {[%clk 0:02:09]}  axb3 {[%clk 0:01:13]} 22. axb3 {[%clk 0:02:08]}  Ra2 {[%clk 0:01:11]} 23. Bc3 {[%clk 0:02:05]}  Qa8 {[%clk 0:00:30]} 24. Kd1 {[%clk 0:02:02]}  Qa7 {[%clk 0:00:26]} 25. Rxg5 {[%clk 0:02:00]}  Rh8 {[%clk 0:00:24]} 26. Rxg6+ {[%clk 0:01:56]}  fxg6 {[%clk 0:00:23]} 27. Rg1 {[%clk 0:01:53]}  Rxh3 {[%clk 0:00:19]} 28. Nf5+ {[%clk 0:01:47]}  exf5 {[%clk 0:00:17]} 29. Bxf6+ {[%clk 0:01:47]}  Kf7 {[%clk 0:00:14]} 30. Qxh3 {[%clk 0:01:39]}  Ra1+ {[%clk 0:00:14]} 31. Bxa1 {[%clk 0:01:29]}  Qxa1+ {[%clk 0:00:14]} 32. Ke2 {[%clk 0:01:30]}  Qxg1 {[%clk 0:00:14]} 33. Qh7+ {[%clk 0:01:31]}  Ke6 {[%clk 0:00:10]} 34. Qg8+ {[%clk 0:01:31]}  Kd7 {[%clk 0:00:10]} 35. Qf7+ {[%clk 0:01:30]}  Kc8 {[%clk 0:00:07]} 36. Qf8+ {[%clk 0:01:30]}  Kc7 {[%clk 0:00:07]} 37. Qxc5 {[%clk 0:01:31]}  Qg4+ {[%clk 0:00:05]} 38. f3 {[%clk 0:01:31]}  Qg2+ {[%clk 0:00:05]} 39. Qf2 {[%clk 0:01:32]}  Qg5 {[%clk 0:00:04]} 40. exf5 {[%clk 0:01:28]}  Qxf5 {[%clk 0:00:03]} 41. d3 {[%clk 0:01:27]}  Qe5+ {[%clk 0:00:03]} 42. Kd2 {[%clk 0:01:26]}  Qf4+ {[%clk 0:00:02]} 43. Qe3 {[%clk 0:01:26]}  Qh2+ {[%clk 0:00:02]} 44. Kc3 {[%clk 0:01:26]}  Qd6 {[%clk 0:00:03]} 45. d4 {[%clk 0:01:25]}  b5 {[%clk 0:00:02]} 46. Qe5 {[%clk 0:01:25]}  Qxe5 {[%clk 0:00:01]} 47. dxe5 {[%clk 0:01:25]}  c5 {[%clk 0:00:01]} 48. Kd3 {[%clk 0:01:25]} 1-0


[Site "https://www.chess.com"]

[Event "Titled Tuesday Blitz May 30 Late 2023"]
[White "Zaitsev, Alexander"]
[Black "Golubev, Mikhail"]
[WhiteFideId "4164490"]
[BlackFideId "14100983"]
[WhiteElo "2373"]
[BlackElo "2374"]
[Result "1-0"]
[Round "09"]
[TimeControl "180+2"]
[Date "2023.05.31"]
[WhiteClock "0:00:15"]
[BlackClock "0:00:01"]

1. e4 {[%clk 0:03:00]}  c5 {[%clk 0:02:58]} 2. Nf3 {[%clk 0:03:01]}  d6 {[%clk 0:02:58]} 3. d4 {[%clk 0:03:01]}  Nf6 {[%clk 0:02:58]} 4. Nc3 {[%clk 0:03:00]}  cxd4 {[%clk 0:02:58]} 5. Qxd4 {[%clk 0:03:01]}  Nc6 {[%clk 0:02:56]} 6. Bb5 {[%clk 0:03:01]}  Bd7 {[%clk 0:02:57]} 7. Bxc6 {[%clk 0:03:01]}  Bxc6 {[%clk 0:02:58]} 8. Bg5 {[%clk 0:03:01]}  e6 {[%clk 0:02:58]} 9. O-O-O {[%clk 0:03:02]}  Be7 {[%clk 0:02:58]} 10. Rhe1 {[%clk 0:03:03]}  O-O {[%clk 0:02:57]} 11. Kb1 {[%clk 0:03:02]}  Qa5 {[%clk 0:02:48]} 12. Qd2 {[%clk 0:03:02]}  Rfc8 {[%clk 0:02:31]} 13. Nd4 {[%clk 0:03:01]}  Be8 {[%clk 0:02:29]} 14. Nd5 {[%clk 0:02:55]}  Qxd2 {[%clk 0:02:16]} 15. Nxe7+ {[%clk 0:02:55]}  Kf8 {[%clk 0:02:16]} 16. Bxd2 {[%clk 0:02:51]}  Kxe7 {[%clk 0:02:16]} 17. Bb4 {[%clk 0:02:38]}  a5 {[%clk 0:02:16]} 18. Ba3 {[%clk 0:02:37]}  b5 {[%clk 0:02:16]} 19. c3 {[%clk 0:02:22]}  Ng4 {[%clk 0:01:30]} 20. f3 {[%clk 0:02:00]}  Ne5 {[%clk 0:01:24]} 21. b3 {[%clk 0:01:31]}  b4 {[%clk 0:01:02]} 22. cxb4 {[%clk 0:01:27]}  a4 {[%clk 0:01:02]} 23. Kb2 {[%clk 0:01:09]}  axb3 {[%clk 0:00:58]} 24. axb3 {[%clk 0:01:03]}  g5 {[%clk 0:00:27]} 25. b5 {[%clk 0:01:02]}  Rd8 {[%clk 0:00:26]} 26. g3 {[%clk 0:00:50]}  Kf6 {[%clk 0:00:21]} 27. f4 {[%clk 0:00:44]}  gxf4 {[%clk 0:00:20]} 28. gxf4 {[%clk 0:00:45]}  Ng6 {[%clk 0:00:18]} 29. Bxd6 {[%clk 0:00:38]}  Ra7 {[%clk 0:00:11]} 30. Nc6 {[%clk 0:00:34]}  Bxc6 {[%clk 0:00:08]} 31. bxc6 {[%clk 0:00:35]}  Rc8 {[%clk 0:00:06]} 32. Rc1 {[%clk 0:00:31]}  e5 {[%clk 0:00:02]} 33. f5 {[%clk 0:00:19]}  Nf4 {[%clk 0:00:01]} 34. Re3 {[%clk 0:00:15]} 1-0


[Site "https://www.chess.com"]

[Event "Titled Tuesday Blitz May 30 Late 2023"]
[White "Skaric, Djuro"]
[Black "Becerra, Juan David"]
[WhiteFideId "934569"]
[BlackFideId "4404998"]
[WhiteElo "2282"]
[BlackElo "2304"]
[Result "1-0"]
[Round "09"]
[TimeControl "180+2"]
[Date "2023.05.31"]
[WhiteClock "0:01:15"]
[BlackClock "0:00:04"]

1. g3 {[%clk 0:03:00]}  d5 {[%clk 0:02:57]} 2. Bg2 {[%clk 0:03:01]}  Nf6 {[%clk 0:02:55]} 3. d3 {[%clk 0:03:01]}  c6 {[%clk 0:02:51]} 4. Nf3 {[%clk 0:03:01]}  Bg4 {[%clk 0:02:51]} 5. O-O {[%clk 0:03:02]}  Nbd7 {[%clk 0:02:50]} 6. h3 {[%clk 0:03:02]}  Bxf3 {[%clk 0:02:50]} 7. Bxf3 {[%clk 0:03:01]}  e5 {[%clk 0:02:51]} 8. Bg2 {[%clk 0:03:02]}  Bc5 {[%clk 0:02:50]} 9. Nc3 {[%clk 0:03:03]}  O-O {[%clk 0:02:50]} 10. e4 {[%clk 0:03:03]}  dxe4 {[%clk 0:02:49]} 11. dxe4 {[%clk 0:03:03]}  a5 {[%clk 0:02:48]} 12. Qe2 {[%clk 0:03:03]}  a4 {[%clk 0:02:48]} 13. a3 {[%clk 0:03:03]}  Qb6 {[%clk 0:02:48]} 14. Rb1 {[%clk 0:03:00]}  Bd4 {[%clk 0:02:42]} 15. Bd2 {[%clk 0:02:59]}  Nc5 {[%clk 0:02:42]} 16. Kh2 {[%clk 0:02:57]}  Ne6 {[%clk 0:02:42]} 17. f4 {[%clk 0:02:56]}  exf4 {[%clk 0:02:38]} 18. gxf4 {[%clk 0:02:55]}  Rfe8 {[%clk 0:02:18]} 19. e5 {[%clk 0:02:55]}  Bxc3 {[%clk 0:02:05]} 20. Bxc3 {[%clk 0:02:54]}  Nd5 {[%clk 0:02:05]} 21. Bd2 {[%clk 0:02:52]}  f5 {[%clk 0:02:00]} 22. c4 {[%clk 0:02:41]}  Ne7 {[%clk 0:01:53]} 23. Be3 {[%clk 0:02:40]}  Qb3 {[%clk 0:01:49]} 24. Rg1 {[%clk 0:02:39]}  Rad8 {[%clk 0:01:48]} 25. Bf1 {[%clk 0:02:35]}  g6 {[%clk 0:01:22]} 26. Qf2 {[%clk 0:02:25]}  b5 {[%clk 0:01:05]} 27. Rc1 {[%clk 0:02:21]}  Rd7 {[%clk 0:00:50]} 28. Rg2 {[%clk 0:02:09]}  Red8 {[%clk 0:00:50]} 29. Rc3 {[%clk 0:01:41]}  Qd1 {[%clk 0:00:42]} 30. cxb5 {[%clk 0:01:39]}  cxb5 {[%clk 0:00:30]} 31. Bxb5 {[%clk 0:01:38]}  Nd5 {[%clk 0:00:17]} 32. Bxd7 {[%clk 0:01:33]}  Rxd7 {[%clk 0:00:18]} 33. Rc1 {[%clk 0:01:29]}  Qd3 {[%clk 0:00:12]} 34. Bd2 {[%clk 0:01:28]}  Qe4 {[%clk 0:00:09]} 35. Rf1 {[%clk 0:01:26]}  Nd4 {[%clk 0:00:06]} 36. Bc3 {[%clk 0:01:24]}  Nxc3 {[%clk 0:00:04]} 37. bxc3 {[%clk 0:01:24]}  Ne6 {[%clk 0:00:04]} 38. h4 {[%clk 0:01:22]}  Rd3 {[%clk 0:00:04]} 39. h5 {[%clk 0:01:21]}  Kf7 {[%clk 0:00:04]} 40. hxg6+ {[%clk 0:01:20]}  hxg6 {[%clk 0:00:05]} 41. Qh4 {[%clk 0:01:19]}  Ke8 {[%clk 0:00:03]} 42. Qh8+ {[%clk 0:01:18]}  Kd7 {[%clk 0:00:03]} 43. Qh7+ {[%clk 0:01:17]}  Kc6 {[%clk 0:00:04]} 44. Qxg6 {[%clk 0:01:15]} 1-0


[Site "https://www.chess.com"]

[Event "Titled Tuesday Blitz May 30 Late 2023"]
[White "Chylewski, Patryk"]
[Black "Rangel, Daniel"]
[WhiteFideId "1186191"]
[BlackFideId "2124475"]
[WhiteElo "2163"]
[BlackElo "2256"]
[Result "1-0"]
[Round "09"]
[TimeControl "180+2"]
[Date "2023.05.31"]
[WhiteClock "0:00:08"]
[BlackClock "0:00:08"]

1. e4 {[%clk 0:03:00]}  c5 {[%clk 0:02:58]} 2. Nf3 {[%clk 0:03:00]}  g6 {[%clk 0:02:59]} 3. c3 {[%clk 0:02:59]}  Bg7 {[%clk 0:02:59]} 4. d4 {[%clk 0:02:58]}  cxd4 {[%clk 0:02:59]} 5. cxd4 {[%clk 0:02:59]}  d5 {[%clk 0:03:00]} 6. e5 {[%clk 0:02:58]}  Bg4 {[%clk 0:03:00]} 7. Be2 {[%clk 0:02:56]}  e6 {[%clk 0:03:00]} 8. O-O {[%clk 0:02:56]}  Ne7 {[%clk 0:03:00]} 9. Nbd2 {[%clk 0:02:45]}  Nbc6 {[%clk 0:03:00]} 10. h3 {[%clk 0:02:44]}  Bxf3 {[%clk 0:02:59]} 11. Nxf3 {[%clk 0:02:45]}  O-O {[%clk 0:02:59]} 12. b3 {[%clk 0:02:12]}  a6 {[%clk 0:02:52]} 13. Ba3 {[%clk 0:02:11]}  b5 {[%clk 0:02:50]} 14. Bc5 {[%clk 0:02:06]}  Re8 {[%clk 0:02:43]} 15. a4 {[%clk 0:02:05]}  bxa4 {[%clk 0:02:31]} 16. bxa4 {[%clk 0:02:01]}  Qa5 {[%clk 0:02:24]} 17. Qd2 {[%clk 0:01:48]}  Qxd2 {[%clk 0:02:13]} 18. Nxd2 {[%clk 0:01:49]}  a5 {[%clk 0:02:14]} 19. Bb5 {[%clk 0:01:45]}  Rec8 {[%clk 0:02:14]} 20. Rfc1 {[%clk 0:01:43]}  Nf5 {[%clk 0:02:10]} 21. Nb3 {[%clk 0:01:42]}  Na7 {[%clk 0:01:39]} 22. Ba6 {[%clk 0:01:37]}  Rc7 {[%clk 0:01:03]} 23. Bb6 {[%clk 0:00:56]}  Nc6 {[%clk 0:00:47]} 24. Bb5 {[%clk 0:00:20]}  Rb7 {[%clk 0:00:46]} 25. Rxc6 {[%clk 0:00:19]}  Bf8 {[%clk 0:00:37]} 26. Bc5 {[%clk 0:00:17]}  Bh6 {[%clk 0:00:20]} 27. Ba3 {[%clk 0:00:12]}  Rbb8 {[%clk 0:00:17]} 28. Bc1 {[%clk 0:00:12]}  Bf8 {[%clk 0:00:15]} 29. Bd2 {[%clk 0:00:12]}  Bb4 {[%clk 0:00:14]} 30. Bxb4 {[%clk 0:00:11]}  axb4 {[%clk 0:00:15]} 31. g4 {[%clk 0:00:10]}  Nh4 {[%clk 0:00:10]} 32. Rc5 {[%clk 0:00:09]}  Nf3+ {[%clk 0:00:09]} 33. Kf1 {[%clk 0:00:09]}  Ng5 {[%clk 0:00:09]} 34. h4 {[%clk 0:00:08]}  Ne4 {[%clk 0:00:09]} 35. Rc7 {[%clk 0:00:08]}  Rxb5 {[%clk 0:00:09]} 36. axb5 {[%clk 0:00:07]}  Rb8 {[%clk 0:00:10]} 37. Raa7 {[%clk 0:00:05]}  Nc3 {[%clk 0:00:09]} 38. Rxf7 {[%clk 0:00:04]}  Nxb5 {[%clk 0:00:09]} 39. Rg7+ {[%clk 0:00:04]}  Kf8 {[%clk 0:00:09]} 40. Raf7+ {[%clk 0:00:04]}  Ke8 {[%clk 0:00:09]} 41. Rg8+ {[%clk 0:00:05]}  Kxf7 {[%clk 0:00:09]} 42. Rxb8 {[%clk 0:00:06]}  Nc3 {[%clk 0:00:10]} 43. Rxb4 {[%clk 0:00:06]}  Ne4 {[%clk 0:00:09]} 44. Rb7+ {[%clk 0:00:06]}  Kg8 {[%clk 0:00:09]} 45. Nc5 {[%clk 0:00:06]}  h5 {[%clk 0:00:08]} 46. Nxe4 {[%clk 0:00:06]}  dxe4 {[%clk 0:00:08]} 47. gxh5 {[%clk 0:00:07]}  gxh5 {[%clk 0:00:08]} 48. Ke2 {[%clk 0:00:08]} 1-0


[Site "https://www.chess.com"]

[Event "Titled Tuesday Blitz May 30 Late 2023"]
[White "Qiao, Cindy"]
[Black "Bringas Gomez, Artai"]
[WhiteFideId "2620243"]
[BlackFideId "24534064"]
[WhiteElo "1777"]
[BlackElo "2179"]
[Result "1-0"]
[Round "09"]
[TimeControl "180+2"]
[Date "2023.05.31"]
[WhiteClock "0:00:23"]
[BlackClock "0:00:11"]

1. d4 {[%clk 0:03:00]}  d5 {[%clk 0:02:59]} 2. Nf3 {[%clk 0:03:00]}  c6 {[%clk 0:02:59]} 3. Bf4 {[%clk 0:03:00]}  Bf5 {[%clk 0:02:59]} 4. e3 {[%clk 0:03:00]}  e6 {[%clk 0:03:00]} 5. Be2 {[%clk 0:02:58]}  Bd6 {[%clk 0:02:55]} 6. Ne5 {[%clk 0:02:57]}  Ne7 {[%clk 0:02:51]} 7. Nd2 {[%clk 0:02:55]}  O-O {[%clk 0:02:51]} 8. g4 {[%clk 0:02:55]}  Bg6 {[%clk 0:02:49]} 9. h4 {[%clk 0:02:53]}  f6 {[%clk 0:02:43]} 10. Nxg6 {[%clk 0:02:46]}  hxg6 {[%clk 0:02:41]} 11. Bxd6 {[%clk 0:02:38]}  Qxd6 {[%clk 0:02:42]} 12. Bd3 {[%clk 0:02:36]}  e5 {[%clk 0:02:42]} 13. c3 {[%clk 0:02:30]}  e4 {[%clk 0:02:41]} 14. Bc2 {[%clk 0:02:28]}  Nd7 {[%clk 0:02:41]} 15. Qe2 {[%clk 0:02:28]}  a5 {[%clk 0:02:40]} 16. O-O-O {[%clk 0:02:27]}  b5 {[%clk 0:02:39]} 17. f3 {[%clk 0:02:28]}  exf3 {[%clk 0:02:38]} 18. Qxf3 {[%clk 0:02:28]}  b4 {[%clk 0:02:37]} 19. c4 {[%clk 0:02:23]}  dxc4 {[%clk 0:02:31]} 20. Nxc4 {[%clk 0:02:24]}  Qe6 {[%clk 0:02:31]} 21. Kb1 {[%clk 0:02:17]}  a4 {[%clk 0:02:30]} 22. Nd2 {[%clk 0:02:14]}  b3 {[%clk 0:02:30]} 23. axb3 {[%clk 0:02:13]}  a3 {[%clk 0:02:30]} 24. bxa3 {[%clk 0:02:06]}  Rxa3 {[%clk 0:02:29]} 25. Kb2 {[%clk 0:02:07]}  Ra7 {[%clk 0:02:22]} 26. Ra1 {[%clk 0:02:07]}  Rb7 {[%clk 0:02:21]} 27. h5 {[%clk 0:02:06]}  g5 {[%clk 0:02:12]} 28. Qe4 {[%clk 0:02:01]}  Qxe4 {[%clk 0:02:00]} 29. Bxe4 {[%clk 0:02:00]}  Nb6 {[%clk 0:01:59]} 30. Rhc1 {[%clk 0:01:55]}  Ned5 {[%clk 0:01:55]} 31. Re1 {[%clk 0:01:45]}  Re7 {[%clk 0:01:47]} 32. Bxd5+ {[%clk 0:01:37]}  Nxd5 {[%clk 0:01:48]} 33. e4 {[%clk 0:01:33]}  Nf4 {[%clk 0:01:48]} 34. Kc3 {[%clk 0:01:33]}  Rd8 {[%clk 0:01:44]} 35. Nc4 {[%clk 0:01:30]}  Red7 {[%clk 0:01:42]} 36. Rad1 {[%clk 0:01:27]}  Ne6 {[%clk 0:01:11]} 37. d5 {[%clk 0:01:27]}  cxd5 {[%clk 0:01:12]} 38. exd5 {[%clk 0:01:28]}  Nc5 {[%clk 0:01:13]} 39. d6 {[%clk 0:01:25]}  Rb8 {[%clk 0:01:10]} 40. Rb1 {[%clk 0:01:23]}  Kf7 {[%clk 0:01:07]} 41. Rf1 {[%clk 0:01:18]}  Kg8 {[%clk 0:00:48]} 42. Rf5 {[%clk 0:01:15]}  Ne4+ {[%clk 0:00:47]} 43. Kd3 {[%clk 0:01:02]}  Nxd6 {[%clk 0:00:42]} 44. Rd5 {[%clk 0:01:02]}  Rbd8 {[%clk 0:00:42]} 45. Nb6 {[%clk 0:01:00]}  Rb7 {[%clk 0:00:41]} 46. Nc4 {[%clk 0:00:58]}  Nf7 {[%clk 0:00:39]} 47. Rxd8+ {[%clk 0:00:58]}  Nxd8 {[%clk 0:00:39]} 48. b4 {[%clk 0:00:58]}  Rd7+ {[%clk 0:00:36]} 49. Kc3 {[%clk 0:00:58]}  Kf7 {[%clk 0:00:27]} 50. b5 {[%clk 0:00:56]}  Nb7 {[%clk 0:00:23]} 51. Rf1 {[%clk 0:00:56]}  Ke6 {[%clk 0:00:23]} 52. Re1+ {[%clk 0:00:55]}  Kf7 {[%clk 0:00:23]} 53. Rf1 {[%clk 0:00:55]}  Ke6 {[%clk 0:00:23]} 54. Kb4 {[%clk 0:00:54]}  Rd4 {[%clk 0:00:22]} 55. Re1+ {[%clk 0:00:48]}  Kd5 {[%clk 0:00:22]} 56. Rd1 {[%clk 0:00:43]}  Rxd1 {[%clk 0:00:22]} 57. Ne3+ {[%clk 0:00:43]}  Ke4 {[%clk 0:00:22]} 58. Nxd1 {[%clk 0:00:44]}  Kf3 {[%clk 0:00:23]} 59. b6 {[%clk 0:00:41]}  Kxg4 {[%clk 0:00:23]} 60. Kb5 {[%clk 0:00:42]}  Nd8 {[%clk 0:00:21]} 61. Nf2+ {[%clk 0:00:32]}  Kf3 {[%clk 0:00:20]} 62. Nd3 {[%clk 0:00:32]}  g4 {[%clk 0:00:20]} 63. Nb4 {[%clk 0:00:31]}  g3 {[%clk 0:00:20]} 64. Nc6 {[%clk 0:00:32]}  g2 {[%clk 0:00:16]} 65. Nxd8 {[%clk 0:00:32]}  g1=Q {[%clk 0:00:17]} 66. b7 {[%clk 0:00:32]}  Qb1+ {[%clk 0:00:17]} 67. Kc6 {[%clk 0:00:32]}  Qc2+ {[%clk 0:00:17]} 68. Kd7 {[%clk 0:00:32]}  Qd3+ {[%clk 0:00:17]} 69. Kc7 {[%clk 0:00:32]}  Qc4+ {[%clk 0:00:14]} 70. Nc6 {[%clk 0:00:32]}  Qf4+ {[%clk 0:00:14]} 71. Kc8 {[%clk 0:00:32]}  Qf5+ {[%clk 0:00:14]} 72. Kc7 {[%clk 0:00:33]}  Qf4+ {[%clk 0:00:13]} 73. Kc8 {[%clk 0:00:33]}  f5 {[%clk 0:00:12]} 74. b8=Q {[%clk 0:00:33]}  Qxb8+ {[%clk 0:00:12]} 75. Kxb8 {[%clk 0:00:33]}  f4 {[%clk 0:00:12]} 76. Kc7 {[%clk 0:00:32]}  Ke4 {[%clk 0:00:11]} 77. Na5 {[%clk 0:00:20]}  f3 {[%clk 0:00:11]} 78. Nc4 {[%clk 0:00:20]}  f2 {[%clk 0:00:12]} 79. Nd2+ {[%clk 0:00:20]}  Kf4 {[%clk 0:00:12]} 80. Kd6 {[%clk 0:00:20]}  Ke3 {[%clk 0:00:12]} 81. Nf1+ {[%clk 0:00:20]}  Ke2 {[%clk 0:00:12]} 82. Nh2 {[%clk 0:00:20]}  Ke3 {[%clk 0:00:07]} 83. Ke5 {[%clk 0:00:20]}  f1=Q {[%clk 0:00:02]} 84. Nxf1+ {[%clk 0:00:20]}  Kf2 {[%clk 0:00:03]} 85. Kf5 {[%clk 0:00:19]}  Kxf1 {[%clk 0:00:03]} 86. Kg6 {[%clk 0:00:20]}  Kg2 {[%clk 0:00:04]} 87. Kxg7 {[%clk 0:00:21]}  Kg3 {[%clk 0:00:05]} 88. h6 {[%clk 0:00:22]}  Kg4 {[%clk 0:00:06]} 89. h7 {[%clk 0:00:23]}  Kf5 {[%clk 0:00:06]} 90. h8=Q {[%clk 0:00:24]}  Ke6 {[%clk 0:00:07]} 91. Qh6+ {[%clk 0:00:24]}  Ke7 {[%clk 0:00:08]} 92. Qf6+ {[%clk 0:00:24]}  Ke8 {[%clk 0:00:09]} 93. Qf7+ {[%clk 0:00:25]}  Kd8 {[%clk 0:00:09]} 94. Kf6 {[%clk 0:00:25]}  Kc8 {[%clk 0:00:10]} 95. Ke6 {[%clk 0:00:26]}  Kb8 {[%clk 0:00:11]} 96. Kd6 {[%clk 0:00:27]}  Kc8 {[%clk 0:00:12]} 97. Kc6 {[%clk 0:00:28]}  Kd8 {[%clk 0:00:11]} 98. Qd7# {[%clk 0:00:23]} 1-0


[Site "https://www.chess.com"]

[Event "Titled Tuesday Blitz May 30 Late 2023"]
[White "Janaszak, Dawid"]
[Black "Magallanes, Rey Jomar"]
[WhiteFideId "1119206"]
[BlackFideId "5205948"]
[WhiteElo "2220"]
[BlackElo "2284"]
[Result "0-1"]
[Round "09"]
[TimeControl "180+2"]
[Date "2023.05.31"]
[WhiteClock "0:00:09"]
[BlackClock "0:00:10"]

1. e4 {[%clk 0:03:00]}  c5 {[%clk 0:02:58]} 2. Nf3 {[%clk 0:02:59]}  d6 {[%clk 0:02:58]} 3. b4 {[%clk 0:02:59]}  Nf6 {[%clk 0:02:56]} 4. bxc5 {[%clk 0:02:57]}  dxc5 {[%clk 0:02:57]} 5. Nc3 {[%clk 0:02:55]}  Nc6 {[%clk 0:02:57]} 6. Bc4 {[%clk 0:02:53]}  e6 {[%clk 0:02:57]} 7. O-O {[%clk 0:02:53]}  Be7 {[%clk 0:02:57]} 8. e5 {[%clk 0:02:51]}  Nd5 {[%clk 0:02:56]} 9. Bb2 {[%clk 0:02:47]}  O-O {[%clk 0:02:55]} 10. Qe2 {[%clk 0:02:46]}  a6 {[%clk 0:02:54]} 11. a4 {[%clk 0:02:42]}  Na5 {[%clk 0:02:28]} 12. Ba2 {[%clk 0:02:38]}  Nc6 {[%clk 0:02:21]} 13. Qe4 {[%clk 0:02:37]}  Nxc3 {[%clk 0:02:09]} 14. Bxc3 {[%clk 0:02:37]}  Qc7 {[%clk 0:02:07]} 15. Rab1 {[%clk 0:02:24]}  b5 {[%clk 0:02:05]} 16. h4 {[%clk 0:02:21]}  b4 {[%clk 0:02:04]} 17. Bb2 {[%clk 0:02:20]}  Bb7 {[%clk 0:02:04]} 18. Qg4 {[%clk 0:02:14]}  Na5 {[%clk 0:01:57]} 19. d3 {[%clk 0:02:06]}  Bc6 {[%clk 0:01:49]} 20. Bc1 {[%clk 0:02:04]}  Rfe8 {[%clk 0:01:46]} 21. h5 {[%clk 0:01:51]}  Bxf3 {[%clk 0:01:38]} 22. gxf3 {[%clk 0:01:43]}  Qxe5 {[%clk 0:01:37]} 23. h6 {[%clk 0:00:56]}  Nc6 {[%clk 0:01:30]} 24. f4 {[%clk 0:00:48]}  Qf6 {[%clk 0:01:26]} 25. f5 {[%clk 0:00:37]}  Nd4 {[%clk 0:00:53]} 26. fxe6 {[%clk 0:00:37]}  Nf3+ {[%clk 0:00:53]} 27. Kg2 {[%clk 0:00:35]}  Nh4+ {[%clk 0:00:52]} 28. Kh3 {[%clk 0:00:35]}  fxe6 {[%clk 0:00:47]} 29. Qxe6+ {[%clk 0:00:29]}  Qxe6+ {[%clk 0:00:46]} 30. Bxe6+ {[%clk 0:00:30]}  Kh8 {[%clk 0:00:45]} 31. Bb2 {[%clk 0:00:30]}  Bf6 {[%clk 0:00:39]} 32. Bxf6 {[%clk 0:00:30]}  gxf6 {[%clk 0:00:40]} 33. Bd5 {[%clk 0:00:31]}  Rad8 {[%clk 0:00:39]} 34. Be4 {[%clk 0:00:28]}  f5 {[%clk 0:00:37]} 35. Bb7 {[%clk 0:00:28]}  Nf3 {[%clk 0:00:32]} 36. Rh1 {[%clk 0:00:17]}  Nd4 {[%clk 0:00:27]} 37. Bxa6 {[%clk 0:00:17]}  Rd6 {[%clk 0:00:26]} 38. Kg3 {[%clk 0:00:16]}  Rxa6 {[%clk 0:00:26]} 39. Kf4 {[%clk 0:00:15]}  Rg6 {[%clk 0:00:24]} 40. f3 {[%clk 0:00:15]}  Rf6 {[%clk 0:00:20]} 41. Kg5 {[%clk 0:00:13]}  Ref8 {[%clk 0:00:18]} 42. Rbc1 {[%clk 0:00:10]}  Ne6+ {[%clk 0:00:17]} 43. Kh4 {[%clk 0:00:11]}  Rxh6+ {[%clk 0:00:17]} 44. Kg3 {[%clk 0:00:11]}  Rg8+ {[%clk 0:00:17]} 45. Kf2 {[%clk 0:00:12]}  Rxh1 {[%clk 0:00:16]} 46. Rxh1 {[%clk 0:00:13]}  f4 {[%clk 0:00:16]} 47. Re1 {[%clk 0:00:13]}  Nd4 {[%clk 0:00:16]} 48. Re5 {[%clk 0:00:13]}  Nxc2 {[%clk 0:00:16]} 49. a5 {[%clk 0:00:12]}  b3 {[%clk 0:00:16]} 50. Rxc5 {[%clk 0:00:13]}  Rb8 {[%clk 0:00:12]} 51. a6 {[%clk 0:00:08]}  b2 {[%clk 0:00:12]} 52. a7 {[%clk 0:00:09]}  b1=Q {[%clk 0:00:12]} 53. axb8=Q+ {[%clk 0:00:10]}  Qxb8 {[%clk 0:00:12]} 54. Rxc2 {[%clk 0:00:10]}  Qb6+ {[%clk 0:00:12]} 55. Kg2 {[%clk 0:00:11]}  Qe3 {[%clk 0:00:13]} 56. Rc8+ {[%clk 0:00:11]}  Kg7 {[%clk 0:00:13]} 57. d4 {[%clk 0:00:10]}  Qe2+ {[%clk 0:00:11]} 58. Kh3 {[%clk 0:00:07]}  Qxf3+ {[%clk 0:00:12]} 59. Kh4 {[%clk 0:00:08]}  Qg3+ {[%clk 0:00:11]} 60. Kh5 {[%clk 0:00:09]}  Qh3+ {[%clk 0:00:11]} 61. Kg5 {[%clk 0:00:09]}  Qxc8 {[%clk 0:00:10]} 0-1


[Site "https://www.chess.com"]

[Event "Titled Tuesday Blitz May 30 Late 2023"]
[White "Liu, Casper"]
[Black "Cardozo Munar, Carlos Eduardo"]
[WhiteFideId "1454153"]
[BlackFideId "4409477"]
[WhiteElo "2221"]
[BlackElo "2067"]
[Result "1-0"]
[Round "09"]
[TimeControl "180+2"]
[Date "2023.05.31"]
[WhiteClock "0:00:43"]
[BlackClock "0:00:03"]

1. a3 {[%clk 0:03:00]}  Nf6 {[%clk 0:02:57]} 2. d4 {[%clk 0:03:00]}  g6 {[%clk 0:02:57]} 3. Nc3 {[%clk 0:03:00]}  Bg7 {[%clk 0:02:57]} 4. e4 {[%clk 0:03:00]}  d6 {[%clk 0:02:56]} 5. Bg5 {[%clk 0:02:58]}  O-O {[%clk 0:02:57]} 6. Qd2 {[%clk 0:02:58]}  Nbd7 {[%clk 0:02:54]} 7. O-O-O {[%clk 0:02:58]}  c5 {[%clk 0:02:54]} 8. dxc5 {[%clk 0:02:58]}  Nxc5 {[%clk 0:02:54]} 9. f3 {[%clk 0:02:59]}  Be6 {[%clk 0:02:48]} 10. Bh6 {[%clk 0:02:57]}  b5 {[%clk 0:02:40]} 11. h4 {[%clk 0:02:55]}  a5 {[%clk 0:02:28]} 12. Bxb5 {[%clk 0:02:53]}  Rb8 {[%clk 0:02:27]} 13. h5 {[%clk 0:02:50]}  Qc7 {[%clk 0:02:19]} 14. Kb1 {[%clk 0:02:35]}  Rfc8 {[%clk 0:02:19]} 15. hxg6 {[%clk 0:02:32]}  fxg6 {[%clk 0:02:19]} 16. Bxg7 {[%clk 0:02:31]}  Kxg7 {[%clk 0:02:20]} 17. Qh6+ {[%clk 0:02:25]}  Kg8 {[%clk 0:02:17]} 18. Nh3 {[%clk 0:02:26]}  Bxh3 {[%clk 0:01:53]} 19. Qxh3 {[%clk 0:02:16]}  e6 {[%clk 0:01:32]} 20. Bc4 {[%clk 0:01:58]}  Kf8 {[%clk 0:01:18]} 21. Ka1 {[%clk 0:01:42]}  Qb6 {[%clk 0:00:53]} 22. Nb5 {[%clk 0:01:21]}  d5 {[%clk 0:00:40]} 23. exd5 {[%clk 0:01:16]}  exd5 {[%clk 0:00:40]} 24. Qh6+ {[%clk 0:01:13]}  Kg8 {[%clk 0:00:20]} 25. Rxd5 {[%clk 0:01:13]}  Ne6 {[%clk 0:00:10]} 26. Rd6 {[%clk 0:01:06]}  Rxc4 {[%clk 0:00:10]} 27. Rxb6 {[%clk 0:01:06]}  Rxb6 {[%clk 0:00:11]} 28. Qe3 {[%clk 0:00:57]}  Rcc6 {[%clk 0:00:06]} 29. a4 {[%clk 0:00:56]}  Kg7 {[%clk 0:00:06]} 30. Qh6+ {[%clk 0:00:54]}  Kg8 {[%clk 0:00:06]} 31. Rd1 {[%clk 0:00:55]}  Rxc2 {[%clk 0:00:03]} 32. Qe3 {[%clk 0:00:46]}  Rcc6 {[%clk 0:00:03]} 33. g4 {[%clk 0:00:43]} 1-0


[Site "https://www.chess.com"]